bitfinex-derivatives/quotes_SOLF0:USTF0_20260220
["timestamp","ask_amount","ask_price","bid_price","bid_amount"]
[1771550628488,2.97705196,82.84,82.791,10.47941676]
[1771550628684,10.8729,82.821,82.791,10.47941676]
[1771550629191,8.40644308,82.829,82.77,2.97705196]
[1771550630788,8.40644308,82.829,82.78,2.97705196]
[1771550631189,8.40644308,82.829,82.781,10.47941676]
[1771550631384,10.8723,82.825,82.781,10.47941676]
[1771550631590,8.40644308,82.829,82.781,10.47941676]
[1771550632690,10.8731,82.819,82.781,10.47941676]
[1771550634087,10.8904547,82.816,82.771,10.47941676]
[1771550635287,10.8904547,82.816,82.772,10.8791]
[1771550635488,10.8904547,82.816,82.773,10.47941676]
[1771550636492,10.8904547,82.816,82.776,10.47941676]
[1771550636992,10.8904547,82.816,82.777,10.8785]
[1771550637193,10.8904547,82.816,82.778,10.47941676]
[1771550637392,10.8904547,82.829,82.781,10.47941676]
[1771550637590,10.8904547,82.829,82.782,10.8778]
[1771550637892,10.8904547,82.829,82.781,10.47941676]
[1771550638692,10.8721,82.827,82.781,10.47941676]
[1771550639195,21.7625547,82.827,82.781,10.47941676]
[1771550639393,10.8728,82.821,82.781,10.47941676]
[1771550640198,10.8736,82.815,82.781,10.47941676]
[1771550641292,21.7632547,82.821,82.782,10.47941676]
[1771550641495,2.98739011,82.83,82.782,10.47941676]
[1771550641702,10.8733,82.818,82.782,10.47941676]
[1771550642801,10.66381223,82.817,82.782,10.47941676]
[1771550643401,10.66381223,82.809,82.77,10.63809247]
[1771550644798,10.66381223,82.808,82.77,10.63809247]
[1771550646402,10.66381223,82.808,82.77,13.62548258]
[1771550646605,10.8734,82.817,82.772,10.63809247]
[1771550647006,22.101717,82.817,82.772,10.63809247]
[1771550647303,22.102017,82.814,82.772,10.63809247]
[1771550648297,22.102417,82.811,82.772,10.63809247]
[1771550648503,21.738,82.85,82.778,10.54288621]
[1771550648504,11.228317,82.829,82.778,10.54288621]
[1771550648706,11.228317,82.829,82.781,10.54288621]
[1771550649705,10.8726,82.823,82.785,10.54288621]
[1771550650207,11.228317,82.822,82.785,10.54288621]
[1771550651807,11.228317,82.822,82.786,10.8773]
[1771550652507,11.228317,82.822,82.787,10.54288621]
[1771550652508,10.8728,82.821,82.787,10.54288621]
[1771550655010,10.8735,82.816,82.787,10.54288621]
[1771550655808,2.98739011,82.8,82.762,10.54288621]
[1771550656008,11.228317,82.8,82.762,10.54288621]
[1771550656209,10.8758,82.798,82.762,10.54288621]
[1771550656906,11.228317,82.817,82.771,10.54288621]
[1771550657506,11.228317,82.805,82.765,22.51832691]
[1771550657704,11.228317,82.805,82.76,466.7481123]
[1771550658009,11.228317,82.805,82.76,463.76072219]
[1771550658207,11.228317,82.805,82.761,10.54288621]
[1771550658405,10.876,82.797,82.761,10.54288621]
[1771550659407,10.8768,82.791,82.761,10.54288621]
[1771550659607,10.8768,82.791,82.762,10.54288621]
[1771550660104,10.8768,82.791,82.763,10.54288621]
[1771550661202,10.8768,82.791,82.764,33.06121312]
[1771550662303,10.8768,82.791,82.765,22.51832691]
[1771550662701,10.8768,82.791,82.766,10.54288621]
[1771550663108,10.8768,82.791,82.768,22.51832691]
[1771550663308,10.8768,82.791,82.766,10.54288621]
[1771550665213,10.8775,82.785,82.766,10.54288621]
[1771550665413,11.228317,82.805,82.766,10.54288621]
[1771550666112,11.228317,82.805,82.766,33.06121312]
[1771550666812,10.8763,82.795,82.766,33.06121312]
[1771550667416,11.228317,82.805,82.766,33.06121312]
[1771550668107,11.228317,82.801,82.767,22.51832691]
[1771550668310,11.228317,82.801,82.766,33.06121312]
[1771550669114,11.228317,82.801,82.767,22.51832691]
[1771550670214,11.228317,82.801,82.768,22.51832691]
[1771550671117,11.228317,82.801,82.769,22.51832691]
[1771550673114,11.228317,82.801,82.77,22.51832691]
[1771550673311,11.228317,82.801,82.771,22.51832691]
[1771550674420,22.103717,82.801,82.771,22.51832691]
[1771550675120,22.103717,82.801,82.772,22.51832691]
[1771550675922,10.8758,82.798,82.772,22.51832691]
[1771550676319,10.8765,82.793,82.772,22.51832691]
[1771550676520,10.8765,82.793,82.767,22.51832691]
[1771550676716,22.104817,82.793,82.767,22.51832691]
[1771550677322,22.104817,82.793,82.766,22.51832691]
[1771550677525,10.8779,82.782,82.766,2.691e-05]
[1771550677723,10.8779,82.782,82.756,10.54288621]
[1771550677924,11.41741916,82.803,82.756,10.54288621]
[1771550678225,10.8771,82.788,82.756,10.54288621]
[1771550679117,10.8763,82.794,82.756,10.54288621]
[1771550679925,10.877,82.789,82.756,10.54288621]
[1771550682030,10.877,82.789,82.761,11.06273821]
[1771550684926,10.8759,82.797,82.761,11.06273821]
[1771550685132,11.41741916,82.796,82.761,11.06273821]
[1771550686431,22.29371916,82.795,82.761,11.06273821]
[1771550686730,2.98739011,82.81,82.761,11.06273821]
[1771550686731,11.41741916,82.794,82.761,11.06273821]
[1771550688730,10.8765,82.793,82.761,11.06273821]
[1771550690026,11.41741916,82.792,82.753,21.94443821]
[1771550690229,10.8767,82.791,82.754,11.06273821]
[1771550691831,22.29411916,82.791,82.754,11.06273821]
[1771550693527,11.41741916,82.79,82.754,11.06273821]
[1771550693828,11.41741916,82.777,82.737,11.06273821]
[1771550694332,10.8804,82.763,82.737,11.06273821]
[1771550695327,10.8812,82.757,82.73,2.98876401]
[1771550695527,10.8812,82.757,82.726,11.06273821]
[1771550697235,11.41741916,82.758,82.726,11.06273821]
[1771550697535,11.41741916,82.758,82.71,29.83494148]
[1771550697536,11.41741916,82.758,82.719,22.56993717]
[1771550697733,11.41741916,82.758,82.718,22.56993717]
[1771550698334,11.41741916,82.739,82.691,11.06273821]
[1771550699731,22.30141916,82.736,82.691,11.06273821]
[1771550700241,11.41741916,82.735,82.691,11.06273821]
[1771550700433,11.41741916,82.776,82.72,2.98876401]
[1771550700631,11.41741916,82.776,82.73,2.98876401]
[1771550701138,11.41741916,82.776,82.731,11.06273821]
[1771550701338,21.7516,82.799,82.741,11.06273821]
[1771550701339,11.41741916,82.799,82.741,11.06273821]
[1771550701632,11.41741916,82.789,82.741,11.06273821]
[1771550701832,11.41741916,82.78,82.741,11.06273821]
[1771550703633,11.41741916,82.78,82.742,10.883]
[1771550705438,11.84240915,82.779,82.741,11.06273821]
[1771550705641,11.84240915,82.779,82.734,10.8841]
[1771550705642,11.84240915,82.779,82.729,11.70826516]
[1771550705838,11.84240915,82.769,82.729,11.70826516]
[1771550706240,11.84240915,82.769,82.73,22.59286516]
[1771550706441,10.8785,82.778,82.731,11.70826516]
[1771550706742,22.94746269,82.778,82.731,11.70826516]
[1771550706941,22.94746269,82.778,82.733,10.8843]
[1771550707141,22.94746269,82.778,82.734,11.35484722]
[1771550707543,12.06896269,82.79,82.742,10.883]
[1771550707742,15.0577267,82.79,82.743,11.35484722]
[1771550708236,12.06896269,82.78,82.743,11.35484722]
[1771550709540,12.06896269,82.78,82.695,21.7785]
[1771550709541,12.06896269,82.78,82.745,11.35484722]
[1771550711044,12.06896269,82.78,82.736,10.8838]
[1771550711246,12.06896269,82.78,82.736,22.23864722]
[1771550711447,15.0577267,82.78,82.736,22.23864722]
[1771550711752,15.0577267,82.78,82.736,11.35484722]
[1771550712650,12.06896269,82.778,82.736,11.35484722]
[1771550713953,12.06896269,82.778,82.736,11.12108376]
[1771550714153,12.06896269,82.778,82.72,2.98876401]
[1771550714450,12.06896269,82.774,82.72,2.98876401]
[1771550714848,2.98876401,82.77,82.72,2.98876401]
[1771550715054,12.06896269,82.759,82.71,2.98876401]
[1771550715558,12.06896269,82.757,82.701,10.8885]
[1771550715746,12.06896269,82.757,82.702,11.35484722]
[1771550716055,12.06896269,82.757,82.711,11.35484722]
[1771550716252,12.06896269,82.756,82.711,11.35484722]
[1771550721358,12.06896269,82.756,82.712,10.887]
[1771550721557,12.06896269,82.756,82.713,11.35484722]
[1771550723756,12.06896269,82.754,82.713,11.35484722]
[1771550724058,12.06896269,82.754,82.674,29.83494148]
[1771550724059,12.06896269,82.739,82.691,11.35484722]
[1771550724959,12.06896269,82.729,82.691,11.35484722]
[1771550726359,12.06896269,82.729,82.692,11.35484722]
[1771550728865,12.06896269,82.729,82.693,10.8896]
[1771550729367,12.06896269,82.729,82.693,22.24444722]
[1771550729666,12.06896269,82.729,82.694,11.35484722]
[1771550729964,2.98876401,82.75,82.697,11.35484722]
[1771550730165,15.0577267,82.75,82.697,11.35484722]
[1771550731662,12.06896269,82.747,82.706,10.8879]
[1771550732463,12.06896269,82.747,82.712,10.8871]
[1771550733568,15.0577267,82.74,82.707,11.35484722]
[1771550734469,15.0577267,82.74,82.706,10.8879]
[1771550735367,15.0577267,82.74,82.696,11.35484722]
[1771550736668,10.8843,82.734,82.697,11.35484722]
[1771550736863,15.0577267,82.74,82.697,11.35484722]
[1771550737672,12.06896269,82.74,82.697,11.35484722]
[1771550738270,15.0577267,82.74,82.697,11.35484722]
[1771550738671,12.06896269,82.74,82.697,11.35484722]
[1771550739270,11.84614295,82.737,82.686,12.27136677]
[1771550739472,11.84614295,82.729,82.686,12.27136677]
[1771550741774,11.84614295,82.729,82.687,10.8903]
[1771550741975,11.84614295,82.729,82.688,12.27136677]
[1771550742375,10.8841,82.735,82.692,10.8896]
[1771550742577,10.8841,82.735,82.693,12.27136677]
[1771550744380,10.8849,82.729,82.693,12.27136677]
[1771550745071,10.8857,82.723,82.693,12.27136677]
[1771550746473,10.8848,82.73,82.693,12.27136677]
[1771550746682,11.84614295,82.739,82.693,12.27136677]
[1771550749776,11.84614295,82.739,82.694,10.8894]
[1771550749979,11.84614295,82.739,82.695,12.27136677]
[1771550751681,11.84614295,82.739,82.696,10.8892]
[1771550751881,11.84614295,82.739,82.697,12.27136677]
[1771550752780,11.84614295,82.739,82.699,12.27136677]
[1771550753282,11.84614295,82.739,82.701,10.8885]
[1771550753581,11.84614295,82.739,82.701,23.15986677]
[1771550754277,11.84614295,82.739,82.706,10.8879]
[1771550755784,11.84614295,82.739,82.716,10.8864]
[1771550756685,11.84614295,82.739,82.687,12.27136677]
[1771550756883,11.84614295,82.739,82.671,21.7849]
[1771550756884,11.84614295,82.739,82.691,12.27136677]
[1771550757785,11.84614295,82.739,82.71,10.8873]
[1771550758386,11.84614295,82.739,82.701,12.27136677]
[1771550761582,11.84614295,82.739,82.703,12.27136677]
[1771550762487,11.84614295,82.739,82.705,11.60020393]
[1771550763789,11.84614295,82.739,82.706,10.8879]
[1771550764784,11.84614295,82.739,82.705,11.60020393]
[1771550765887,10.8838,82.738,82.705,11.60020393]
[1771550766082,22.21244722,82.738,82.705,11.60020393]
[1771550766290,11.32864722,82.738,82.705,22.48810393]
[1771550769193,11.09909868,82.759,82.713,11.84736394]
[1771550769395,11.09909868,82.759,82.716,11.84736394]
[1771550770689,11.09909868,82.759,82.721,11.84736394]
[1771550771499,10.8811,82.758,82.721,11.84736394]
[1771550771699,11.09909868,82.759,82.721,11.84736394]
[1771550771901,2.99311922,82.75,82.721,11.84736394]
[1771550773904,2.99311922,82.75,82.722,10.8857]
[1771550774098,11.09909868,82.759,82.722,10.8857]
[1771550774298,11.09909868,82.759,82.721,11.84736394]
[1771550774503,11.09909868,82.759,82.722,11.84736394]
[1771550775708,11.09909868,82.759,82.727,10.885]
[1771550779409,11.09909868,82.759,82.722,11.84736394]
[1771550779903,11.09909868,82.759,82.723,10.8856]
[1771550780609,2.99311922,82.73,82.688,18.2180795]
[1771550781005,2.99311922,82.72,82.688,18.2180795]
[1771550781203,2.99311922,82.71,82.68,10.8912]
[1771550782502,2.99311922,82.71,82.651,21.79]
[1771550782503,2.99311922,82.69,82.651,18.23566516]
[1771550782907,2.99311922,82.71,82.671,18.25182618]
[1771550783911,2.99311922,82.71,82.678,10.8915]
[1771550785905,2.99311922,82.71,82.678,29.09617893]
[1771550787116,2.99311922,82.71,82.679,18.19812322]
[1771550790108,2.99311922,82.71,82.671,10.8924]
[1771550790314,2.99311922,82.71,82.671,29.09201489]
[1771550790614,2.99311922,82.71,82.676,18.19961489]
[1771550791717,2.99311922,82.71,82.678,18.16869371]
[1771550793620,2.99311922,82.73,82.681,18.18171998]
[1771550794418,2.99311922,82.73,82.68,2.99311922]
[1771550794419,2.99311922,82.73,82.697,18.18141308]
[1771550794815,21.7569,82.778,82.682,10.891]
[1771550794816,2.99311922,82.72,82.682,10.891]
[1771550796117,2.99311922,82.72,82.682,29.1310578]
[1771550797019,2.99311922,82.72,82.684,10.8906]
[1771550797820,10.8836,82.739,82.69,2.99311922]
[1771550798021,10.8836,82.739,82.691,18.11770862]
[1771550798420,10.8836,82.739,82.695,10.8892]
[1771550798621,10.8836,82.739,82.696,18.11770862]
[1771550801522,2.99311922,82.74,82.699,18.17206348]
[1771550802820,2.99311922,82.73,82.699,18.17206348]
[1771550803020,10.8842,82.734,82.699,18.17206348]
[1771550803218,10.8852,82.727,82.685,29.05803991]
[1771550803720,10.8852,82.727,82.686,18.16743991]
[1771550804122,2.99311922,82.72,82.678,10.8915]
[1771550804421,2.99311922,82.72,82.678,29.05866167]
[1771550804818,10.8862,82.719,82.681,18.13906644]
[1771550805220,2.99311922,82.72,82.681,18.13906644]
[1771550807824,10.8864,82.718,82.681,18.13906644]
[1771550808929,10.8871,82.712,82.681,18.13906644]
[1771550809732,10.8863,82.718,82.681,18.13906644]
[1771550815436,10.8871,82.712,82.681,18.13906644]
[1771550816335,10.8863,82.718,82.681,18.13906644]
[1771550818436,10.8863,82.718,82.683,18.05287368]
[1771550819630,10.8871,82.712,82.683,18.05287368]
[1771550821041,10.8862,82.719,82.683,18.05287368]
[1771550821839,2.99476995,82.72,82.684,10.8907]
[1771550822041,2.99476995,82.72,82.685,18.0010465]
[1771550823738,13.88086995,82.72,82.685,18.0010465]
[1771550824136,2.99476995,82.72,82.685,18.0010465]
[1771550824945,10.8868,82.715,82.674,18.04328665]
[1771550825148,2.99476995,82.71,82.663,18.04328665]
[1771550826646,10.8868,82.715,82.671,10.8924]
[1771550826952,10.8868,82.715,82.672,18.04300436]
[1771550827353,2.99476995,82.71,82.672,18.04300436]
[1771550827753,2.99476995,82.71,82.676,18.04912822]
[1771550831557,10.8868,82.715,82.676,18.04912822]
[1771550831758,2.99476995,82.71,82.676,18.04912822]
[1771550835355,10.8884,82.703,82.676,18.04912822]
[1771550835660,2.99476995,82.7,82.666,18.02861279]
[1771550836760,10.8891,82.697,82.666,18.02861279]
[1771550838562,2.99476995,82.7,82.666,18.02861279]
[1771550838865,10.8883,82.703,82.666,18.02861279]
[1771550839565,9.01125095,82.738,82.669,17.96974576]
[1771550839860,2.99476995,82.71,82.669,17.96974576]
[1771550840360,9.01125095,82.738,82.669,17.96974576]
[1771550840361,2.99476995,82.7,82.669,17.96974576]
[1771550840668,2.99476995,82.7,82.659,17.96946856]
[1771550841063,2.99476995,82.69,82.659,17.96946856]
[1771550841764,10.8908,82.685,82.659,17.96946856]
[1771550843268,2.99476995,82.7,82.659,17.96946856]
[1771550844765,10.8894,82.695,82.659,17.96946856]
[1771550848269,10.89,82.69,82.659,17.96946856]
[1771550853572,21.7704,82.727,82.652,10.895]
[1771550853573,4.49145768,82.8,82.734,12.84894415]
[1771550853774,2.99476995,82.77,82.734,12.84894415]
[1771550854973,4.49145768,82.779,82.734,12.84894415]
[1771550855181,2.99476995,82.79,82.741,12.84894415]
[1771550855381,4.60554648,82.791,82.741,12.84894415]
[1771550855681,36.28,82.821,82.741,12.84894415]
[1771550855682,4.62658974,82.779,82.741,12.84894415]
[1771550855873,4.62658974,82.779,82.721,12.84894415]
[1771550856079,4.62658974,82.779,82.733,12.84894415]
[1771550856273,2.99476995,82.77,82.733,12.84894415]
[1771550857283,4.62658974,82.779,82.733,12.84894415]
[1771550857780,4.62658974,82.779,82.737,12.16225328]
[1771550858581,4.62658974,82.779,82.738,10.8836]
[1771550859283,4.62658974,82.779,82.737,12.16225328]
[1771550862883,10.8771,82.789,82.741,12.16225328]
[1771550863287,15.65572992,82.789,82.741,12.16225328]
[1771550863481,10.8774,82.786,82.741,12.16225328]
[1771550866988,10.8784,82.779,82.741,12.16225328]
[1771550869994,10.8784,82.779,82.751,12.16225328]
[1771550875695,4.78469985,82.797,82.751,12.16225328]
[1771550876795,10.8777,82.784,82.751,12.16225328]
[1771550879900,10.8773,82.787,82.751,12.16225328]
[1771550881898,10.8753,82.802,82.771,12.16225328]
[1771550883698,2.9891049,82.78,82.733,12.96376997]
[1771550884795,2.9891049,82.79,82.733,12.96376997]
[1771550885193,10.8775,82.785,82.741,23.84696997]
[1771550885392,10.8775,82.785,82.742,12.96376997]
[1771550887798,10.8763,82.794,82.751,13.04404034]
[1771550888006,10.8763,82.794,82.761,13.04404034]
[1771550888499,10.8755,82.801,82.761,13.04404034]
[1771550891000,5.7416825,82.818,82.697,36.28]
[1771550891001,10.8741,82.811,82.771,13.04404034]
[1771550891606,10.8734,82.817,82.778,10.8784]
[1771550891807,10.8734,82.817,82.781,13.04404034]
[1771550901815,10.8741,82.811,82.781,13.04404034]
[1771550902321,2.9891049,82.82,82.781,13.04404034]
[1771550902322,8.90966667,82.82,82.781,13.04404034]
[1771550902816,10.8732,82.818,82.781,13.04404034]
[1771550903012,5.97428494,82.833,82.781,13.04404034]
[1771550903210,5.97428494,82.833,82.791,13.04404034]
[1771550903617,10.8706,82.838,82.797,13.04404034]
[1771550904216,10.8706,82.838,82.801,13.04404034]
[1771550905018,2.9891049,82.83,82.762,13.04404034]
[1771550905220,2.9891049,82.82,82.781,13.04404034]
[1771550905424,5.86867852,82.819,82.781,13.04404034]
[1771550906921,10.8737,82.814,82.781,13.04404034]
[1771550923444,10.8737,82.814,82.782,12.47590608]
[1771550923640,5.92843772,82.803,82.781,0.51003745]
[1771550923846,5.92843772,82.799,82.755,12.47590608]
[1771550924042,5.92887265,82.789,82.744,12.47590608]
[1771550924945,10.8776,82.785,82.744,12.47590608]
[1771550930550,36.28,82.83,82.761,12.47590608]
[1771550930551,12.70004353,82.809,82.761,12.47590608]
[1771550930944,10.8774,82.786,82.761,12.47590608]
[1771550932150,10.8782,82.78,82.761,12.47590608]
[1771550932641,12.70004353,82.799,82.761,12.47590608]
[1771550933652,10.8773,82.787,82.761,12.47590608]
[1771550936451,10.8773,82.787,82.751,12.47590608]
[1771550954164,10.878,82.781,82.751,12.47590608]
[1771550955768,10.8771,82.788,82.751,12.47590608]
[1771550957765,13.05100861,82.811,82.771,13.87059553]
[1771550958870,10.8745,82.808,82.771,13.87059553]
[1771550968779,13.05100861,82.807,82.771,13.87059553]
[1771550971075,13.05100861,82.807,82.767,22.51849656]
[1771550971379,13.05100861,82.807,82.768,13.87059553]
[1771550972778,10.875,82.804,82.768,13.87059553]
[1771550972975,13.05100861,82.812,82.771,13.87059553]
[1771550973175,13.05100861,82.812,82.781,13.87059553]
[1771550976982,10.8743,82.81,82.769,13.00436003]
[1771550977184,13.48306072,82.809,82.761,13.00436003]
[1771550977379,13.48306072,82.799,82.761,13.00436003]
[1771550978686,10.8768,82.79,82.761,13.00436003]
[1771550979184,13.48306072,82.786,82.749,13.00436003]
[1771550979884,13.48306072,82.781,82.749,13.00436003]
[1771550980685,10.8782,82.78,82.749,13.00436003]
[1771550983897,10.8773,82.787,82.749,13.00436003]
[1771550984094,10.8773,82.787,82.751,13.00436003]
[1771550985092,13.48306072,82.791,82.751,13.00436003]
[1771550987998,10.8753,82.802,82.761,13.00436003]
[1771550988202,13.48306072,82.801,82.761,13.00436003]
[1771550989799,10.8756,82.8,82.761,13.00436003]
[1771550989994,24.35866072,82.8,82.761,13.00436003]
[1771550991702,13.48306072,82.8,82.761,13.00436003]
[1771550997201,10.8735,82.815,82.768,13.00436003]
[1771550997408,13.48306072,82.814,82.771,13.00436003]
[1771550997913,13.48306072,82.814,82.779,10.8782]
[1771551000201,13.48306072,82.809,82.767,22.51849656]
[1771551000406,2.98809549,82.8,82.746,13.00436003]
[1771551000606,2.98809549,82.79,82.746,13.00436003]
[1771551001405,10.8771,82.789,82.746,13.00436003]
[1771551001608,2.98809549,82.81,82.751,17.17502678]
[1771551001805,2.98809549,82.82,82.771,17.17502678]
[1771551002109,2.98809549,82.83,82.771,17.17502678]
[1771551002713,10.8725,82.824,82.773,17.17491286]
[1771551003205,8.83149632,82.86,82.744,30.04495933]
[1771551003206,10.8742,82.81,82.765,10.8801]
[1771551003411,2.98809549,82.8,82.75,17.26720384]
[1771551003613,2.98809549,82.79,82.75,17.26720384]
[1771551004813,10.8771,82.789,82.75,17.26720384]
[1771551005114,2.98809549,82.81,82.75,20.25529933]
[1771551006909,10.8751,82.804,82.761,17.2328307]
[1771551007306,10.876,82.796,82.761,17.2328307]
[1771551008512,10.8747,82.807,82.771,17.23482901]
[1771551009117,10.8755,82.8,82.771,17.23482901]
[1771551009911,10.8755,82.8,82.76,2.98809549]
[1771551010713,10.8755,82.8,82.76,20.19665406]
[1771551015925,10.8746,82.808,82.76,20.19665406]
[1771551019418,10.8746,82.808,82.762,17.26928747]
[1771551021128,10.8746,82.808,82.764,17.33340396]
[1771551022724,10.8746,82.808,82.766,17.33342074]
[1771551029233,10.8753,82.802,82.767,17.36899555]
[1771551031734,10.8761,82.796,82.767,17.36899555]
[1771551034131,10.8768,82.79,82.767,17.36899555]
[1771551034436,10.8768,82.79,82.74,2.98809549]
[1771551034437,11.7676915,82.789,82.74,2.98809549]
[1771551034735,10.8783,82.78,82.74,2.98809549]
[1771551034934,11.7676915,82.789,82.74,2.98809549]
[1771551036335,11.7676915,82.789,82.741,14.0728382]
[1771551037336,10.8788,82.775,82.741,14.0728382]
[1771551038339,10.8798,82.768,82.741,14.0728382]
[1771551039340,10.8782,82.78,82.741,14.0728382]
[1771551039539,23.18472937,82.78,82.741,14.0728382]
[1771551040335,23.18472937,82.78,82.702,37.69051574]
[1771551040336,12.30663024,82.791,82.751,13.43967004]
[1771551041837,12.14784604,82.789,82.751,13.43967004]
[1771551042137,10.8778,82.783,82.74,13.43967004]
[1771551042343,12.14775178,82.782,82.74,13.43967004]
[1771551042744,12.14775178,82.782,82.74,16.42776553]
[1771551046251,12.53628421,82.78,82.74,16.42776553]
[1771551046647,10.8783,82.779,82.74,16.42776553]
[1771551046848,12.60032879,82.778,82.74,16.42776553]
[1771551048551,12.65005551,82.799,82.751,13.43967004]
[1771551050850,12.65005551,82.799,82.761,13.43967004]
[1771551051649,10.876,82.797,82.761,13.43967004]
[1771551052058,12.65005551,82.799,82.761,13.43967004]
[1771551052352,12.77275717,82.819,82.761,13.43967004]
[1771551052746,23.67078671,82.808,82.764,13.43967004]
[1771551053150,12.79753821,82.807,82.764,13.43967004]
[1771551057859,12.76487637,82.819,82.771,13.43967004]
[1771551058252,12.76487637,82.819,82.76,16.4269558]
[1771551058448,12.76487637,82.803,82.76,13.43967004]
[1771551059754,12.76487637,82.803,82.762,13.43967004]
[1771551060752,12.93615005,82.779,82.74,13.43967004]
[1771551061355,12.9334375,82.789,82.74,13.43967004]
[1771551061851,12.9334375,82.789,82.751,13.43967004]
[1771551062259,12.9334375,82.789,82.739,14.70799126]
[1771551062459,12.9334375,82.789,82.741,14.70799126]
[1771551064657,13.03203969,82.786,82.741,14.70799126]
[1771551066263,13.03203969,82.786,82.742,10.883]
[1771551066664,13.03203969,82.786,82.743,14.70799126]
[1771551069161,13.10984026,82.779,82.742,10.883]
[1771551069765,13.10984026,82.779,82.735,14.4212349]
[1771551070264,13.10984026,82.779,82.738,10.8836]
[1771551071262,13.10984026,82.779,82.738,25.3048349]
[1771551071462,13.10984026,82.779,82.741,10.8832]
[1771551072567,13.10984026,82.779,82.741,25.3044349]
[1771551076261,13.10984026,82.779,82.744,10.8829]
[1771551076463,13.10984026,82.779,82.744,25.3041349]
[1771551078665,13.10984026,82.779,82.745,14.4212349]
[1771551087375,13.10984026,82.779,82.747,10.8824]
[1771551088280,13.10984026,82.779,82.748,14.4212349]
[1771551088580,13.10984026,82.779,82.749,10.8822]
[1771551089882,13.10984026,82.779,82.749,25.3034349]
[1771551090882,13.10984026,82.779,82.75,14.4212349]
[1771551091084,13.10984026,82.779,82.752,10.8818]
[1771551091283,2.98728576,82.8,82.753,14.4212349]
[1771551091487,13.16114853,82.799,82.753,14.4212349]
[1771551092784,13.16114853,82.799,82.77,10.8793]
[1771551093778,13.22724368,82.816,82.777,14.4212349]
[1771551094787,13.24107732,82.829,82.79,14.4212349]
[1771551095183,13.24107732,82.829,82.78,2.98728576]
[1771551095184,2.98728576,82.82,82.782,10.8778]
[1771551095487,13.14286008,82.819,82.782,10.8778]
[1771551098091,13.14286008,82.819,82.782,24.94831915]
[1771551100090,13.14286008,82.819,82.783,14.07051915]
[1771551108894,13.53681099,82.809,82.772,14.07051915]
[1771551110493,2.98728576,82.81,82.774,14.07051915]
[1771551111000,13.60473886,82.819,82.779,14.07051915]
[1771551112095,13.60473886,82.819,82.781,14.07051915]
[1771551116602,2.98728576,82.82,82.781,14.07051915]
[1771551116902,13.6385058,82.839,82.781,14.07051915]
[1771551117096,21.7296,82.882,82.781,14.07051915]
[1771551117097,10.8736,82.815,82.781,14.07051915]
[1771551117399,16.59291459,82.81,82.781,14.07051915]
[1771551117801,13.60562883,82.81,82.781,14.07051915]
[1771551120700,13.60480971,82.807,82.771,14.07051915]
[1771551120900,13.60480971,82.807,82.763,10.8803]
[1771551121101,13.60480971,82.807,82.763,24.95081915]
[1771551121396,13.60480971,82.807,82.74,25.51367979]
[1771551121397,13.60480971,82.807,82.765,10.8801]
[1771551121600,2.98770815,82.81,82.766,14.07051915]
[1771551122004,13.6807603,82.829,82.778,14.07051915]
[1771551122199,13.6807603,82.829,82.739,21.7669]
[1771551122200,13.6807603,82.843,82.791,14.94024824]
[1771551123501,10.8674,82.862,82.81,17.92795639]
[1771551123698,2.98770815,82.86,82.81,17.92795639]
[1771551124004,10.8674,82.862,82.81,17.92795639]
[1771551124702,2.98770815,82.87,82.821,14.94024824]
[1771551125801,10.8665,82.869,82.821,14.94024824]
[1771551126103,13.52650708,82.868,82.821,14.94024824]
[1771551126301,13.52650708,82.849,82.807,14.94024824]
[1771551126500,2.98770815,82.84,82.807,14.94024824]
[1771551128404,10.8695,82.847,82.807,14.94024824]
[1771551128604,13.52650708,82.849,82.807,14.94024824]
[1771551130207,10.8684,82.855,82.807,14.94024824]
[1771551130400,2.98770815,82.85,82.807,14.94024824]
[1771551130811,2.98770815,82.85,82.809,15.07403524]
[1771551131016,16.64345128,82.86,82.809,15.07403524]
[1771551132013,2.98770815,82.85,82.809,15.07403524]
[1771551132707,13.85670815,82.85,82.809,15.07403524]
[1771551134811,2.98770815,82.85,82.809,15.07403524]
[1771551135007,10.8679,82.858,82.809,15.07403524]
[1771551135210,2.98770815,82.87,82.811,15.07403524]
[1771551135712,16.29033395,82.87,82.811,15.07403524]
[1771551136715,10.8669,82.866,82.819,15.07403524]
[1771551137413,10.8669,82.866,82.795,22.52597164]
[1771551137414,2.98770815,82.87,82.822,15.07403524]
[1771551137608,10.8658,82.874,82.822,15.07403524]
[1771551138414,10.8658,82.874,82.831,15.07403524]
[1771551138617,2.98770815,82.88,82.831,15.07403524]
[1771551139010,13.35422973,82.907,82.841,15.07403524]
[1771551139209,24.21672973,82.899,82.841,15.07403524]
[1771551139815,24.21672973,82.899,82.85,15.07403524]
[1771551140310,24.21672973,82.899,82.786,30.15241259]